[Event "Schack-SM 2022: Mastarklassen-Elit"]
[Site "Fyrishov, Idrottsgatan 2, Uppsala, Sweden"]
[Date "2022.07.04"]
[Round "3.1"]
[White "Engqvist, Thomas"]
[Black "Furhoff, Johan"]
[Result "1-0"]
[TimeControl "90 minutes for 40 moves + 30 minutes for the rest of the game + 30 seconds per move from move one."]
[WhiteTitle "IM"]
[BlackTitle "IM"]
[WhiteFideId "1700332"]
[BlackFideId "1701797"]
[WhiteElo "2330"]
[BlackElo "2348"]

1. e4 {[%clk 01:18:19]} {[%emt 00:12:40]} e5 {[%clk 01:30:52]} {[%emt
00:00:10]} 2. Nf3 {[%clk 01:18:38]} {[%emt 00:00:10]} Nc6 {[%clk 01:31:17]}
{[%emt 00:00:05]} 3. Bb5 {[%clk 01:19:02]} {[%emt 00:00:05]} a6 {[%clk
01:31:40]} {[%emt 00:00:07]} 4. Bxc6 {[%clk 01:19:06]} {[%emt 00:00:26]} dxc6
{[%clk 01:32:05]} {[%emt 00:00:06]} 5. d3 {[%clk 01:19:00]} {[%emt 00:00:36]}
Bd6 {[%clk 01:28:03]} {[%emt 00:04:31]} 6. Be3 {[%clk 01:18:47]} {[%emt
00:00:44]} Ne7 {[%clk 01:26:52]} {[%emt 00:01:41]} 7. d4 {[%clk 01:17:50]}
{[%emt 00:01:27]} exd4 {[%clk 01:18:22]} {[%emt 00:09:00]} 8. Bxd4 {[%clk
01:18:01]} {[%emt 00:00:18]} f6 {[%clk 01:17:05]} {[%emt 00:01:48]} 9. Nbd2
{[%clk 01:13:58]} {[%emt 00:04:33]} c5 {[%clk 01:12:51]} {[%emt 00:04:45]} 10.
Be3 {[%clk 01:11:25]} {[%emt 00:03:02]} b5 {[%clk 01:07:38]} {[%emt 00:05:43]}
11. c4 {[%clk 01:00:44]} {[%emt 00:11:10]} Be6 {[%clk 00:56:44]} {[%emt
00:11:24]} 12. Qe2 {[%clk 00:50:15]} {[%emt 00:11:00]} O-O {[%clk 00:54:06]}
{[%emt 00:03:08]} 13. O-O {[%clk 00:45:03]} {[%emt 00:05:42]} Ng6 {[%clk
00:51:25]} {[%emt 00:03:11]} 14. cxb5 {[%clk 00:38:20]} {[%emt 00:07:14]} axb5
{[%clk 00:51:01]} {[%emt 00:00:52]} 15. Qxb5 {[%clk 00:38:36]} {[%emt
00:00:14]} Rb8 {[%clk 00:50:17]} {[%emt 00:01:15]} 16. Qa6 {[%clk 00:36:50]}
{[%emt 00:02:16]} Rxb2 {[%clk 00:44:01]} {[%emt 00:06:45]} 17. Bxc5 {[%clk
00:36:13]} {[%emt 00:01:08]} Qa8 {[%clk 00:40:12]} {[%emt 00:04:19]} 18. Qxa8
{[%clk 00:36:36]} {[%emt 00:00:07]} Rxa8 {[%clk 00:40:36]} {[%emt 00:00:05]} 19.
Bxd6 {[%clk 00:36:47]} {[%emt 00:00:19]} cxd6 {[%clk 00:40:57]} {[%emt
00:00:10]} 20. a3 {[%clk 00:29:36]} {[%emt 00:07:42]} Ra4 {[%clk 00:38:32]}
{[%emt 00:02:55]} 21. Rfc1 {[%clk 00:28:47]} {[%emt 00:01:19]} Nf4 {[%clk
00:37:19]} {[%emt 00:01:42]} 22. Rc6 {[%clk 00:24:40]} {[%emt 00:04:36]} g5
{[%clk 00:36:51]} {[%emt 00:00:58]} 23. Rxd6 {[%clk 00:23:29]} {[%emt
00:01:42]} g4 {[%clk 00:35:10]} {[%emt 00:02:11]} 24. Nh4 {[%clk 00:20:41]}
{[%emt 00:03:17]} Kf7 {[%clk 00:33:04]} {[%emt 00:02:37]} 25. Nf1 {[%clk
00:16:48]} {[%emt 00:04:22]} Rxe4 {[%clk 00:27:37]} {[%emt 00:05:57]} 26. Rd2
{[%clk 00:15:55]} {[%emt 00:01:24]} Re2 {[%clk 00:27:25]} {[%emt 00:00:41]} 27.
Rxb2 {[%clk 00:15:37]} {[%emt 00:00:48]} Rxb2 {[%clk 00:27:42]} {[%emt
00:00:14]} 28. Ne3 {[%clk 00:14:38]} {[%emt 00:01:29]} Ne2+ {[%clk 00:22:26]}
{[%emt 00:05:45]} 29. Kf1 {[%clk 00:14:35]} {[%emt 00:00:34]} Nc3 {[%clk
00:22:48]} {[%emt 00:00:07]} 30. Rc1 {[%clk 00:09:35]} {[%emt 00:05:30]} Rb3
{[%clk 00:22:23]} {[%emt 00:00:56]} 31. Ra1 {[%clk 00:07:38]} {[%emt 00:02:28]}
Rb2 {[%clk 00:21:17]} {[%emt 00:01:35]} 32. a4 {[%clk 00:06:46]} {[%emt
00:01:22]} Bc8 {[%clk 00:17:32]} {[%emt 00:04:14]} 33. a5 {[%clk 00:06:36]}
{[%emt 00:00:42]} h5 {[%clk 00:17:45]} {[%emt 00:00:15]} 34. Nhf5 {[%clk
00:04:25]} {[%emt 00:02:41]} Ba6+ {[%clk 00:17:00]} {[%emt 00:01:15]} 35. Kg1
{[%clk 00:04:51]} {[%emt 00:00:05]} Ne4 {[%clk 00:15:00]} {[%emt 00:02:29]} 36.
Nd5 {[%clk 00:01:27]} {[%emt 00:03:55]} Bb7 {[%clk 00:10:01]} {[%emt 00:05:29]}
37. Nc7 {[%clk 00:01:39]} {[%emt 00:00:17]} Nxf2 {[%clk 00:06:56]} {[%emt
00:03:35]} 38. Nd6+ {[%clk 00:01:07]} {[%emt 00:01:02]} Kg6 {[%clk 00:06:05]}
{[%emt 00:01:21]} 39. Nxb7 {[%clk 00:01:32]} {[%emt 00:00:06]} Rxb7 {[%clk
00:06:31]} {[%emt 00:00:04]} 40. Kxf2 {[%clk 00:01:07]} {[%emt 00:00:54]} Rxc7
{[%clk 00:06:51]} {[%emt 00:00:11]} 41. a6 {[%clk 00:01:34]} {[%emt 00:00:03]}
Ra7 {[%clk 00:07:04]} {[%emt 00:00:16]} 42. Ke3 {[%clk 00:29:39]} {[%emt
00:02:25]} Kg5 {[%clk 00:36:01]} {[%emt 00:01:32]} 43. Ra5+ {[%clk 00:24:32]}
{[%emt 00:05:37]} Kh4 {[%clk 00:33:38]} {[%emt 00:02:53]} 44. g3+ {[%clk
00:24:18]} {[%emt 00:00:44]} Kh3 {[%clk 00:33:58]} {[%emt 00:00:10]} 45. Kf2
{[%clk 00:24:22]} {[%emt 00:00:26]} f5 {[%clk 00:31:58]} {[%emt 00:02:31]} 46.
Rxf5 {[%clk 00:24:17]} {[%emt 00:00:35]} h4 {[%clk 00:32:14]} {[%emt 00:00:14]}
47. Rh5 {[%clk 00:14:21]} {[%emt 00:10:25]} Rf7+ {[%clk 00:32:30]} {[%emt
00:00:14]} 48. Kg1 {[%clk 00:14:46]} {[%emt 00:00:06]} Rh7 {[%clk 00:32:54]}
{[%emt 00:00:06]} 49. Rxh4+ {[%clk 00:14:11]} {[%emt 00:01:05]} 1-0

[Event "Schack-SM 2022: Mastarklassen-Elit"]
[Site "Fyrishov, Idrottsgatan 2, Uppsala, Sweden"]
[Date "2022.07.04"]
[Round "3.2"]
[White "Wiedenkeller, Michael"]
[Black "Ernst, Thomas"]
[Result "1-0"]
[TimeControl "90 minutes for 40 moves + 30 minutes for the rest of the game + 30 seconds per move from move one."]
[WhiteTitle "IM"]
[BlackTitle "GM"]
[WhiteFideId "1700146"]
[BlackFideId "1700065"]
[WhiteElo "2437"]
[BlackElo "2289"]

1. d4 {[%clk 01:30:34]} {[%emt 00:00:24]} Nf6 {[%clk 01:30:51]} {[%emt
00:00:09]} 2. Bg5 {[%clk 01:30:16]} {[%emt 00:00:48]} Ne4 {[%clk 01:31:00]}
{[%emt 00:00:22]} 3. Bf4 {[%clk 01:30:30]} {[%emt 00:00:15]} c5 {[%clk
01:31:10]} {[%emt 00:00:20]} 4. f3 {[%clk 01:29:54]} {[%emt 00:01:06]} Qa5+
{[%clk 01:29:47]} {[%emt 00:01:53]} 5. c3 {[%clk 01:29:48]} {[%emt 00:00:36]}
Nf6 {[%clk 01:30:05]} {[%emt 00:00:13]} 6. d5 {[%clk 01:29:03]} {[%emt
00:01:15]} Qb6 {[%clk 01:30:10]} {[%emt 00:00:26]} 7. Bc1 {[%clk 01:28:30]}
{[%emt 00:01:02]} e6 {[%clk 01:29:48]} {[%emt 00:00:52]} 8. e4 {[%clk
01:25:55]} {[%emt 00:03:05]} exd5 {[%clk 01:29:45]} {[%emt 00:00:34]} 9. exd5
{[%clk 01:26:07]} {[%emt 00:00:17]} Bd6 {[%clk 01:29:39]} {[%emt 00:00:35]} 10.
Na3 {[%clk 01:16:28]} {[%emt 00:10:10]} O-O {[%clk 01:29:45]} {[%emt 00:00:24]}
11. Bd3 {[%clk 01:13:27]} {[%emt 00:03:30]} Re8+ {[%clk 01:23:29]} {[%emt
00:06:48]} 12. Ne2 {[%clk 01:13:27]} {[%emt 00:00:29]} Bf8 {[%clk 01:23:48]}
{[%emt 00:00:11]} 13. Nc4 {[%clk 01:11:23]} {[%emt 00:02:35]} Qc7 {[%clk
01:13:56]} {[%emt 00:10:21]} 14. d6 {[%clk 00:58:03]} {[%emt 00:13:50]} Qc6
{[%clk 01:14:08]} {[%emt 00:00:18]} 15. a4 {[%clk 00:50:10]} {[%emt 00:08:23]}
b6 {[%clk 01:12:46]} {[%emt 00:01:51]} 16. Bg5 {[%clk 00:46:33]} {[%emt
00:04:07]} Ba6 {[%clk 01:10:45]} {[%emt 00:02:30]} 17. Bxf6 {[%clk 00:44:16]}
{[%emt 00:02:49]} gxf6 {[%clk 01:11:09]} {[%emt 00:00:06]} 18. O-O {[%clk
00:41:17]} {[%emt 00:03:30]} Kh8 {[%clk 01:07:55]} {[%emt 00:03:43]} 19. Ng3
{[%clk 00:30:16]} {[%emt 00:11:31]} Bxc4 {[%clk 01:06:44]} {[%emt 00:01:41]} 20.
Bxc4 {[%clk 00:30:39]} {[%emt 00:00:07]} Qxd6 {[%clk 01:07:01]} {[%emt
00:00:13]} 21. Bxf7 {[%clk 00:26:18]} {[%emt 00:04:50]} Qxd1 {[%clk 01:05:45]}
{[%emt 00:01:47]} 22. Raxd1 {[%clk 00:21:49]} {[%emt 00:04:59]} Re7 {[%clk
01:06:02]} {[%emt 00:00:12]} 23. Bd5 {[%clk 00:18:15]} {[%emt 00:04:04]} Nc6
{[%clk 01:06:23]} {[%emt 00:00:10]} 24. Be4 {[%clk 00:18:17]} {[%emt 00:00:28]}
Rb8 {[%clk 01:00:03]} {[%emt 00:06:50]} 25. Nf5 {[%clk 00:18:23]} {[%emt
00:00:24]} Re5 {[%clk 01:00:20]} {[%emt 00:00:12]} 26. Rxd7 {[%clk 00:18:24]}
{[%emt 00:00:30]} Ne7 {[%clk 01:00:22]} {[%emt 00:00:28]} 27. Nd6 {[%clk
00:16:15]} {[%emt 00:02:39]} 1-0

[Event "Schack-SM 2022: Mastarklassen-Elit"]
[Site "Fyrishov, Idrottsgatan 2, Uppsala, Sweden"]
[Date "2022.07.03"]
[Round "2.1"]
[White "Ernst, Thomas"]
[Black "Engqvist, Thomas"]
[Result "1/2-1/2"]
[TimeControl "90 minutes for 40 moves + 30 minutes for the rest of the game + 30 seconds per move from move one."]
[WhiteTitle "GM"]
[BlackTitle "IM"]
[WhiteFideId "1700065"]
[BlackFideId "1700332"]
[WhiteElo "2289"]
[BlackElo "2330"]

1. e4 {[%clk 01:30:56]} {[%emt 00:00:03]} c5 {[%clk 01:30:54]} {[%emt
00:00:06]} 2. Nf3 {[%clk 01:31:14]} {[%emt 00:00:12]} e6 {[%clk 01:31:18]}
{[%emt 00:00:06]} 3. d4 {[%clk 01:31:15]} {[%emt 00:00:31]} cxd4 {[%clk
01:31:42]} {[%emt 00:00:05]} 4. Nxd4 {[%clk 01:31:39]} {[%emt 00:00:06]} Nc6
{[%clk 01:32:06]} {[%emt 00:00:06]} 5. Nc3 {[%clk 01:31:21]} {[%emt 00:00:48]}
d6 {[%clk 01:32:30]} {[%emt 00:00:06]} 6. g3 {[%clk 01:28:30]} {[%emt
00:03:21]} Nf6 {[%clk 01:32:42]} {[%emt 00:00:17]} 7. Bg2 {[%clk 01:28:31]}
{[%emt 00:00:30]} Bd7 {[%clk 01:32:53]} {[%emt 00:00:19]} 8. O-O {[%clk
01:19:24]} {[%emt 00:09:37]} Be7 {[%clk 01:31:45]} {[%emt 00:01:37]} 9. Ndb5
{[%clk 01:18:50]} {[%emt 00:01:05]} Qb8 {[%clk 01:31:57]} {[%emt 00:00:18]} 10.
Bg5 {[%clk 01:17:59]} {[%emt 00:01:19]} a6 {[%clk 01:29:11]} {[%emt 00:03:18]}
11. Bxf6 {[%clk 01:18:15]} {[%emt 00:00:14]} gxf6 {[%clk 01:26:57]} {[%emt
00:02:43]} 12. Nd4 {[%clk 01:18:37]} {[%emt 00:00:08]} Qa7 {[%clk 01:25:41]}
{[%emt 00:01:47]} 13. Nb3 {[%clk 01:15:56]} {[%emt 00:03:11]} Ne5 {[%clk
01:22:35]} {[%emt 00:03:36]} 14. a4 {[%clk 01:15:37]} {[%emt 00:00:48]} Rc8
{[%clk 01:21:49]} {[%emt 00:01:16]} 15. Nd2 {[%clk 01:13:56]} {[%emt 00:02:12]}
Qd4 {[%clk 01:10:08]} {[%emt 00:12:11]} 16. Qe2 {[%clk 01:14:03]} {[%emt
00:00:21]} Nc4 {[%clk 01:07:50]} {[%emt 00:02:50]} 17. Nxc4 {[%clk 01:13:17]}
{[%emt 00:01:16]} Qxc4 {[%clk 01:08:04]} {[%emt 00:00:16]} 18. Qd2 {[%clk
01:10:54]} {[%emt 00:02:50]} Qc5 {[%clk 00:54:37]} {[%emt 00:14:00]} 19. Rfd1
{[%clk 01:05:34]} {[%emt 00:05:49]} b5 {[%clk 00:47:14]} {[%emt 00:07:54]} 20.
axb5 {[%clk 01:02:17]} {[%emt 00:03:48]} axb5 {[%clk 00:47:34]} {[%emt
00:00:10]} 21. Rdc1 {[%clk 00:58:47]} {[%emt 00:03:58]} O-O {[%clk 00:36:17]}
{[%emt 00:11:47]} 22. Nd1 {[%clk 00:54:46]} {[%emt 00:04:30]} b4 {[%clk
00:33:38]} {[%emt 00:03:11]} 23. c3 {[%clk 00:50:54]} {[%emt 00:04:20]} bxc3
{[%clk 00:31:46]} {[%emt 00:02:24]} 24. Nxc3 {[%clk 00:51:02]} {[%emt
00:00:22]} Qb6 {[%clk 00:28:48]} {[%emt 00:03:27]} 25. Ra2 {[%clk 00:49:39]}
{[%emt 00:01:51]} Bc6 {[%clk 00:27:10]} {[%emt 00:02:11]} 26. Rca1 {[%clk
00:48:48]} {[%emt 00:01:20]} Bb7 {[%clk 00:24:13]} {[%emt 00:03:27]} 27. Qh6
{[%clk 00:33:57]} {[%emt 00:15:20]} Ra8 {[%clk 00:14:39]} {[%emt 00:10:05]} 28.
Rxa8 {[%clk 00:33:16]} {[%emt 00:01:12]} Rxa8 {[%clk 00:15:01]} {[%emt
00:00:08]} 29. Rxa8+ {[%clk 00:33:34]} {[%emt 00:00:12]} Bxa8 {[%clk 00:15:28]}
{[%emt 00:00:03]} 30. e5 {[%clk 00:24:39]} {[%emt 00:09:25]} Bxg2 {[%clk
00:11:55]} {[%emt 00:04:03]} 31. exf6 {[%clk 00:24:48]} {[%emt 00:00:20]} Bxf6
{[%clk 00:09:51]} {[%emt 00:02:34]} 32. Qxf6 {[%clk 00:25:04]} {[%emt
00:00:13]} Bb7 {[%clk 00:05:26]} {[%emt 00:04:56]} 33. Qg5+ {[%clk 00:19:30]}
{[%emt 00:06:03]} Kf8 {[%clk 00:05:52]} {[%emt 00:00:05]} 34. Nd1 {[%clk
00:19:00]} {[%emt 00:00:59]} Qc6 {[%clk 00:01:42]} {[%emt 00:04:42]} 35. Qd8+
{[%clk 00:19:03]} {[%emt 00:00:26]} Kg7 {[%clk 00:02:09]} {[%emt 00:00:04]} 36.
Qg5+ {[%clk 00:19:23]} {[%emt 00:00:09]} Kf8 {[%clk 00:02:28]} {[%emt
00:00:12]} 37. Qd8+ {[%clk 00:19:45]} {[%emt 00:00:08]} Kg7 {[%clk 00:02:55]}
{[%emt 00:00:03]} 38. Qg5+ {[%clk 00:20:07]} {[%emt 00:00:07]} Kf8 {[%clk
00:03:19]} {[%emt 00:00:07]} 1/2-1/2

[Event "Schack-SM 2022: Mastarklassen-Elit"]
[Site "Fyrishov, Idrottsgatan 2, Uppsala, Sweden"]
[Date "2022.07.03"]
[Round "2.2"]
[White "Furhoff, Johan"]
[Black "Trost, Edvin"]
[Result "0-1"]
[TimeControl "90 minutes for 40 moves + 30 minutes for the rest of the game + 30 seconds per move from move one."]
[WhiteTitle "IM"]
[BlackTitle "FM"]
[WhiteFideId "1701797"]
[BlackFideId "1729519"]
[WhiteElo "2348"]
[BlackElo "2345"]

1. e4 {[%clk 01:30:51]} {[%emt 00:00:08]} c5 {[%clk 01:29:22]} {[%emt
00:01:31]} 2. Nf3 {[%clk 01:31:12]} {[%emt 00:00:17]} Nc6 {[%clk 01:29:12]}
{[%emt 00:00:40]} 3. d4 {[%clk 01:31:28]} {[%emt 00:00:14]} cxd4 {[%clk
01:29:36]} {[%emt 00:00:05]} 4. Nxd4 {[%clk 01:31:51]} {[%emt 00:00:07]} e5
{[%clk 01:29:10]} {[%emt 00:00:56]} 5. Nb5 {[%clk 01:32:04]} {[%emt 00:00:17]}
d6 {[%clk 01:29:29]} {[%emt 00:00:11]} 6. c4 {[%clk 01:31:58]} {[%emt
00:00:36]} Be6 {[%clk 01:29:18]} {[%emt 00:00:41]} 7. N1c3 {[%clk 01:30:40]}
{[%emt 00:01:48]} a6 {[%clk 01:26:47]} {[%emt 00:03:01]} 8. Na3 {[%clk
01:30:58]} {[%emt 00:00:12]} g6 {[%clk 01:25:15]} {[%emt 00:02:02]} 9. Be2
{[%clk 01:13:24]} {[%emt 00:18:04]} Bg7 {[%clk 01:17:44]} {[%emt 00:08:02]} 10.
Nd5 {[%clk 01:00:30]} {[%emt 00:13:23]} Nf6 {[%clk 01:07:14]} {[%emt 00:10:59]}
11. Bg5 {[%clk 00:54:13]} {[%emt 00:06:48]} h6 {[%clk 00:59:48]} {[%emt
00:07:57]} 12. Nxf6+ {[%clk 00:39:58]} {[%emt 00:14:45]} Bxf6 {[%clk 00:58:26]}
{[%emt 00:01:48]} 13. Bxf6 {[%clk 00:40:23]} {[%emt 00:00:08]} Qxf6 {[%clk
00:58:52]} {[%emt 00:00:04]} 14. Qxd6 {[%clk 00:40:48]} {[%emt 00:00:06]} Rd8
{[%clk 00:56:03]} {[%emt 00:03:17]} 15. Qc5 {[%clk 00:40:54]} {[%emt 00:00:25]}
Nd4 {[%clk 00:55:03]} {[%emt 00:01:30]} 16. Bd1 {[%clk 00:37:25]} {[%emt
00:03:59]} Qg5 {[%clk 00:51:08]} {[%emt 00:04:26]} 17. Ba4+ {[%clk 00:29:30]}
{[%emt 00:08:24]} b5 {[%clk 00:44:09]} {[%emt 00:07:29]} 18. cxb5 {[%clk
00:25:34]} {[%emt 00:04:27]} Nf3+ {[%clk 00:41:22]} {[%emt 00:03:17]} 19. Kf1
{[%clk 00:25:41]} {[%emt 00:00:22]} Nd2+ {[%clk 00:39:51]} {[%emt 00:02:00]} 20.
Ke1 {[%clk 00:26:02]} {[%emt 00:00:10]} f5 {[%clk 00:34:05]} {[%emt 00:06:17]}
21. exf5 {[%clk 00:18:56]} {[%emt 00:07:36]} gxf5 {[%clk 00:27:14]} {[%emt
00:07:21]} 22. Bd1 {[%clk 00:15:32]} {[%emt 00:03:53]} Rd5 {[%clk 00:13:13]}
{[%emt 00:14:31]} 23. Qc6+ {[%clk 00:11:30]} {[%emt 00:04:33]} Kf7 {[%clk
00:13:42]} 24. g3 {[%clk 00:11:39]} {[%emt 00:00:21]} Qe7 {[%clk 00:12:18]}
{[%emt 00:01:54]} 25. Bh5+ {[%clk 00:11:08]} {[%emt 00:01:01]} Kf6 {[%clk
00:10:27]} {[%emt 00:02:20]} 26. Qc3 {[%clk 00:04:22]} {[%emt 00:07:15]} Rc8
{[%clk 00:10:27]} {[%emt 00:00:29]} 27. Qe3 {[%clk 00:04:34]} {[%emt 00:00:20]}
f4 {[%clk 00:08:18]} {[%emt 00:02:39]} 28. gxf4 {[%clk 00:03:27]} {[%emt
00:01:37]} Qb4 {[%clk 00:06:32]} {[%emt 00:02:17]} 29. f5 {[%clk 00:00:39]}
{[%emt 00:03:18]} Kxf5 {[%clk 00:04:10]} {[%emt 00:02:51]} 0-1

[Event "Schack-SM 2022: Mastarklassen-Elit"]
[Site "Fyrishov, Idrottsgatan 2, Uppsala, Sweden"]
[Date "2022.07.03"]
[Round "2.3"]
[White "Von Bahr, Oskar"]
[Black "Wiedenkeller, Michael"]
[Result "1/2-1/2"]
[TimeControl "90 minutes for 40 moves + 30 minutes for the rest of the game + 30 seconds per move from move one."]
[WhiteTitle "IM"]
[BlackTitle "IM"]
[WhiteFideId "1703250"]
[BlackFideId "1700146"]
[WhiteElo "2386"]
[BlackElo "2437"]

1. e4 {[%clk 01:30:47]} {[%emt 00:00:13]} e5 {[%clk 01:30:18]} {[%emt
00:00:42]} 2. Nf3 {[%clk 01:31:12]} {[%emt 00:00:05]} Nc6 {[%clk 01:30:40]}
{[%emt 00:00:09]} 3. Bb5 {[%clk 01:31:37]} {[%emt 00:00:04]} Nf6 {[%clk
01:30:34]} {[%emt 00:00:36]} 4. O-O {[%clk 01:31:23]} {[%emt 00:00:45]} Nxe4
{[%clk 01:30:03]} {[%emt 00:01:00]} 5. Re1 {[%clk 01:30:56]} {[%emt 00:00:57]}
Nd6 {[%clk 01:29:39]} {[%emt 00:00:54]} 6. Nxe5 {[%clk 01:31:15]} {[%emt
00:00:11]} Be7 {[%clk 01:29:50]} {[%emt 00:00:19]} 7. Bf1 {[%clk 01:31:28]}
{[%emt 00:00:17]} Nxe5 {[%clk 01:27:12]} {[%emt 00:03:09]} 8. Rxe5 {[%clk
01:31:00]} {[%emt 00:00:58]} O-O {[%clk 01:26:52]} {[%emt 00:00:50]} 9. d4
{[%clk 01:30:54]} {[%emt 00:00:36]} Bf6 {[%clk 01:21:49]} {[%emt 00:05:32]} 10.
Re1 {[%clk 01:31:14]} {[%emt 00:00:10]} Re8 {[%clk 01:16:46]} {[%emt 00:05:34]}
11. Bf4 {[%clk 01:30:54]} {[%emt 00:00:49]} Rxe1 {[%clk 01:02:52]} {[%emt
00:14:24]} 12. Qxe1 {[%clk 01:30:45]} {[%emt 00:00:39]} Ne8 {[%clk 00:51:08]}
{[%emt 00:12:13]} 13. Nc3 {[%clk 01:30:48]} {[%emt 00:00:28]} Bxd4 {[%clk
00:47:09]} {[%emt 00:04:30]} 14. Nd5 {[%clk 01:30:39]} {[%emt 00:00:39]} d6
{[%clk 00:30:10]} {[%emt 00:17:28]} 15. Bg5 {[%clk 01:29:57]} {[%emt 00:01:12]}
Bf6 {[%clk 00:23:44]} {[%emt 00:06:56]} 16. Bxf6 {[%emt 00:02:37]} Nxf6 {[%clk
00:23:29]} {[%emt 00:00:43]} 17. Nxf6+ {[%clk 01:28:01]} {[%emt 00:00:22]} gxf6
{[%clk 00:23:53]} {[%emt 00:00:06]} 18. Qe4 {[%clk 01:25:01]} {[%emt 00:03:29]}
f5 {[%clk 00:19:01]} {[%emt 00:05:23]} 19. Qf3 {[%clk 01:15:48]} {[%emt
00:09:41]} Qf6 {[%clk 00:14:03]} {[%emt 00:05:28]} 20. Re1 {[%clk 01:11:44]}
{[%emt 00:04:34]} Kf8 {[%clk 00:13:21]} {[%emt 00:01:13]} 21. Bb5 {[%clk
00:44:21]} {[%emt 00:27:54]} c6 {[%clk 00:13:38]} {[%emt 00:00:12]} 22. Bxc6
{[%clk 00:43:32]} {[%emt 00:01:19]} bxc6 {[%clk 00:14:00]} {[%emt 00:00:08]} 23.
Qxc6 {[%clk 00:43:37]} {[%emt 00:00:25]} Rb8 {[%clk 00:13:52]} {[%emt
00:00:39]} 24. Qc7 {[%clk 00:39:16]} {[%emt 00:04:51]} Ra8 {[%clk 00:13:38]}
{[%emt 00:00:43]} 25. Qc6 {[%clk 00:39:30]} {[%emt 00:00:16]} Rb8 {[%clk
00:13:51]} {[%emt 00:00:15]} 26. Qc7 {[%emt 00:03:29]} 1/2-1/2